fUST/lending_fUST_20250817
["ID","MTS","AMOUNT","RATE_DAILY","PERIOD"]
[379682665,1755366634922,-480.0,0.00020578,2]
[379682667,1755366634931,-480.0,0.00020578,2]
[379682685,1755366635090,-480.0,0.00020578,2]
[379682687,1755366635100,-1574.7,0.00020578,2]
[379682689,1755366635110,-2493.92,0.00020578,2]
[379682691,1755366635119,-1294.61,0.00020578,2]
[379682693,1755366635129,-480.0,0.00020578,2]
[379682695,1755366635138,-480.0,0.00020578,2]
[379682697,1755366635148,-480.0,0.00020578,2]
[379682699,1755366635157,-480.0,0.00020578,2]
[379682701,1755366635167,-483.54,0.00020578,2]
[379682703,1755366635176,-480.0,0.00020578,2]
[379682705,1755366635186,-992.27,0.00020578,2]
[379682707,1755366635196,-500.0,0.00020578,2]
[379682709,1755366635205,-500.0,0.00020578,2]
[379682711,1755366635215,-500.0,0.00020578,2]
[379682713,1755366635224,-500.0,0.00020578,2]
[379682715,1755366635235,-500.0,0.00020578,2]
[379682717,1755366635244,-480.0,0.00020578,2]
[379682719,1755366635254,-480.0,0.00020578,2]
[379682721,1755366635263,-964.31,0.00020578,2]
[379682724,1755366635277,-574.33,0.00020578,2]
[379682726,1755366635286,-1265.92,0.00020578,2]
[379682728,1755366635296,-660.57,0.00020578,2]
[379682730,1755366635305,-480.0,0.00020578,2]
[379682732,1755366635315,-460.72166703,0.00020578,2]
[379682734,1755366635324,-480.0,0.00020578,2]
[379682736,1755366635333,-478.27430462,0.00020578,2]
[379682738,1755366635342,-1821.05,0.00020578,2]
[379682740,1755366635352,-1198.05,0.00020578,2]
[379682742,1755366635361,-480.0,0.00020578,2]
[379682744,1755366635373,-5578.99,0.00020578,2]
[379682746,1755366635383,-480.0,0.00020578,2]
[379682748,1755366635392,-480.0,0.00020578,2]
[379682750,1755366635401,-460.0,0.00020578,2]
[379682752,1755366635413,-567.89,0.00020578,2]
[379682754,1755366635423,-607.97,0.00020578,2]
[379682756,1755366635432,-480.0,0.00020578,2]
[379682758,1755366635442,-480.0,0.00020578,2]
[379682760,1755366635452,-847.33,0.00020578,2]
[379682762,1755366635462,-847.1,0.00020578,2]
[379682764,1755366635472,-480.0,0.00020578,2]
[379682766,1755366635483,-480.0,0.00020578,2]
[379682768,1755366635492,-480.0,0.00020578,2]
[379682770,1755366635501,-480.0,0.00020578,2]
[379682772,1755366635510,-500.0,0.00020578,2]
[379682774,1755366635519,-12072.86704629,0.00020579,2]
[379682777,1755366635533,-2524.70279292,0.00020579,2]
[379682779,1755366635545,-10849.55008451,0.00020579,2]
[379683065,1755366638654,-617.69,0.00020566,10]
[379683068,1755366638663,-480.0,0.00020574,2]
[379683070,1755366638673,-460.0,0.00020574,2]
[379683073,1755366638683,-109.0562399,0.00020576,2]
[379683075,1755366638694,-370.9437601,0.00020576,2]
[379683077,1755366638705,-460.0,0.00020577,2]
[379683080,1755366638716,-480.0,0.00020578,2]
[379683082,1755366638725,-2652.85623991,0.00020579,2]
[379683085,1755366638736,-8212.64818216,0.00020579,2]
[379683231,1755366640434,-480.0,0.00020577,2]
[379683233,1755366640444,-21534.0,0.00020579,2]
[379683238,1755366640488,-756.92408786,0.00020579,2]
[379683241,1755366640500,-4304.53942021,0.00020579,2]
[379683553,1755366643584,-1250.09,0.00020577,2]
[379683555,1755366643594,-11501.44,0.00020579,2]
[379683667,1755366646465,-480.0,0.00020577,2]
[379683668,1755366646474,-480.0,0.00020578,2]
[379683669,1755366646484,-586.15,0.00020578,2]
[379683670,1755366646493,-3261.34999989,0.00020579,2]
[379683671,1755366646505,-2609.45855847,0.00020579,2]
[379684083,1755366977027,319.982582,0.00013699,2]
[379684132,1755367339323,162.46730399,0.00019954,2]
[379684133,1755367339350,233.88602229,0.00019954,2]
[379684147,1755367451457,235.8976671,0.00019573,2]
[379684166,1755367623014,1208629.6736573,0.0002876,120]
[379684244,1755367832755,-319.982582,0.00020187,2]
[379684292,1755367833267,-90.54271756,0.00020568,2]
[379684295,1755367833279,-271.45728244,0.00020568,2]
[379684297,1755367833289,-300.0,0.00020568,2]
[379684299,1755367833298,-480.0,0.00020568,2]
[379684301,1755367833307,-480.0,0.00020568,2]
[379684303,1755367833317,-1200.0,0.00020568,2]
[379684305,1755367833328,-500.0,0.00020568,2]
[379684307,1755367833337,-276.38102592,0.00020568,2]
[379684410,1755367838737,-1474.14023591,0.00020469,2]
[379684413,1755367838791,-85.60515626,0.00020469,2]
[379684414,1755367838801,-468.19453096,0.00020568,2]
[379684415,1755367838811,-223.61897408,0.00020568,2]
[379684416,1755367838821,-500.0,0.00020568,2]
[379684417,1755367838831,-500.0,0.00020568,2]
[379684418,1755367838840,-250.0,0.00020568,2]
[379684419,1755367838849,-550.66475896,0.00020568,2]
[379684420,1755367838859,-299.67326574,0.00020568,2]
[379684421,1755367838868,-500.0,0.00020568,2]
[379684422,1755367838878,-500.0,0.00020568,2]
[379684423,1755367838887,-500.0,0.00020568,2]
[379684424,1755367838896,-500.0,0.00020568,2]
[379684425,1755367838906,-450.0,0.00020568,2]
[379684426,1755367838915,-343.21282001,0.00020568,2]
[379684427,1755367838925,-287.84378813,0.00020568,2]
[379684428,1755367838934,-278.04863322,0.00020569,2]
[379684429,1755367838946,-201.95136678,0.00020569,2]
[379684430,1755367838956,-663.16136825,0.00020569,2]
[379684431,1755367838969,-583.95863175,0.00020569,2]
[379684432,1755367838978,-4202.39,0.00020569,2]
[379684433,1755367838988,-480.0,0.0002057,2]
[379684434,1755367838997,-916.41,0.0002057,2]
[379684435,1755367839006,-460.0,0.0002057,2]
[379684436,1755367839015,-480.0,0.0002057,2]
[379684437,1755367839024,-480.0,0.0002057,2]
[379684438,1755367839034,-480.0,0.0002057,2]
[379684439,1755367839044,-480.0,0.0002057,2]
[379684440,1755367839053,-1369.97,0.0002057,2]
[379684441,1755367839062,-1328.93488243,0.0002057,2]
[379684638,1755367843771,-480.0,0.00020568,2]
[379684640,1755367843781,-1155.08511757,0.0002057,2]
[379684642,1755367843790,-1284.83,0.0002057,2]
[379684644,1755367843799,-360.00000001,0.0002057,2]
[379684646,1755367843809,-483.39,0.0002057,2]
[379684648,1755367843818,-398.32930879,0.0002057,2]
[379684650,1755367843827,-462.3,0.0002057,2]
[379684652,1755367843836,-480.0,0.0002057,2]
[379684654,1755367843845,-837.81,0.0002057,2]
[379684657,1755367843854,-403.78300779,0.0002057,2]
[379684660,1755367843863,-1002.5,0.0002057,2]
[379684662,1755367843872,-500.0,0.0002057,2]
[379684664,1755367843881,-480.0,0.0002057,2]
[379684666,1755367843890,-480.0,0.0002057,2]
[379684668,1755367843899,-480.0,0.0002057,2]
[379684670,1755367843908,-956.64,0.0002057,2]
[379684672,1755367843918,-1364.07,0.0002057,2]
[379684674,1755367843927,-1257.91,0.0002057,2]
[379684676,1755367843936,-420.0,0.0002057,2]
[379684678,1755367843946,-780.49,0.0002057,2]
[379684680,1755367843955,-480.0,0.0002057,2]
[379684682,1755367843964,-480.0,0.0002057,2]
[379684684,1755367843974,-6865.11,0.0002057,2]
[379684686,1755367843984,-480.0,0.0002057,2]
[379684688,1755367843993,-1135.05,0.0002057,2]
[379684690,1755367844002,-480.0,0.0002057,2]
[379684692,1755367844011,-480.0,0.0002057,2]
[379684694,1755367844020,-380.0,0.0002057,2]
[379684696,1755367844029,-2633.69,0.0002057,2]
[379684698,1755367844038,-461.99479052,0.0002057,2]
[379684700,1755367844047,-480.0,0.0002057,2]
[379684702,1755367844057,-480.0,0.0002057,2]
[379684704,1755367844065,-4016.3,0.0002057,2]
[379684706,1755367844075,-603.63,0.0002057,2]
[379684708,1755367844084,-480.0,0.0002057,2]
[379684710,1755367844093,-538.49,0.0002057,2]
[379684712,1755367844102,-480.0,0.0002057,2]
[379684714,1755367844112,-480.0,0.0002057,2]
[379684716,1755367844121,-544.23,0.0002057,2]
[379684718,1755367844130,-480.0,0.0002057,2]
[379684720,1755367844140,-480.0,0.0002057,2]
[379684722,1755367844151,-1341.8,0.0002057,2]
[379684724,1755367844160,-3005.03,0.0002057,2]
[379684726,1755367844169,-480.0,0.0002057,2]
[379684728,1755367844179,-480.0,0.0002057,2]
[379684730,1755367844189,-480.0,0.0002057,2]
[379684732,1755367844198,-480.0,0.0002057,2]
[379684734,1755367844207,-480.0,0.0002057,2]
[379684736,1755367844216,-480.0,0.0002057,2]
[379684738,1755367844227,-460.0,0.0002057,2]
[379684740,1755367844237,-480.0,0.0002057,2]
[379684742,1755367844246,-480.0,0.0002057,2]
[379684744,1755367844255,-1027.56,0.0002057,2]
[379684746,1755367844264,-2510.71020304,0.0002057,2]
[379684749,1755367844289,-1814.73052509,0.0002057,2]
[379684988,1755367846691,-1068.68927187,0.0002057,2]
[379684989,1755367846701,-521.58,0.0002057,2]
[379684990,1755367846710,-480.0,0.0002057,2]
[379684991,1755367846720,-580.9,0.0002057,2]
[379684992,1755367846729,-1217.17,0.0002057,2]
[379684994,1755367846739,-480.0,0.0002057,2]
[379684995,1755367846748,-41179.72794693,0.0002057,2]
[379684999,1755367846773,-973.10505705,0.0002057,2]
[379685001,1755367846783,-17842.522448,0.00020571,2]
[379685003,1755367846792,-460.0,0.00020572,2]
[379685005,1755367846801,-480.0,0.00020572,2]
[379685007,1755367846811,-343.10931404,0.00020572,2]
[379685009,1755367846821,-511.5,0.00020572,2]
[379685011,1755367846831,-480.0,0.00020572,2]
[379685013,1755367846840,-480.0,0.00020572,2]
[379685015,1755367846849,-462.79052649,0.00020572,2]
[379685018,1755367846859,-480.0,0.00020572,2]
[379685021,1755367846868,-480.0,0.00020572,2]
[379685024,1755367846880,-460.0,0.00020572,2]
[379685027,1755367846889,-480.0,0.00020572,2]
[379685030,1755367846899,-480.0,0.00020572,2]
[379685033,1755367846907,-480.0,0.00020572,2]
[379685035,1755367846917,-460.0,0.00020572,2]
[379685038,1755367846926,-480.0,0.00020572,2]
[379685041,1755367846935,-480.0,0.00020572,2]
[379685043,1755367846945,-445.80773449,0.00020572,2]
[379685045,1755367846954,-480.0,0.00020572,2]
[379685047,1755367846964,-480.0,0.00020572,2]
[379685049,1755367846974,-460.0,0.00020572,2]
[379685051,1755367846982,-480.0,0.00020572,2]
[379685053,1755367846991,-500.15,0.00020572,2]
[379685055,1755367847001,-480.0,0.00020572,2]
[379685057,1755367847011,-2068.27,0.00020572,2]
[379685059,1755367847020,-461.62108008,0.00020572,2]
[379685061,1755367847030,-480.0,0.00020572,2]
[379685063,1755367847040,-480.0,0.00020572,2]
[379685065,1755367847049,-480.0,0.00020572,2]
[379685067,1755367847058,-480.0,0.00020572,2]
[379685069,1755367847068,-480.0,0.00020572,2]
[379685071,1755367847077,-626.37,0.00020572,2]
[379685073,1755367847087,-480.0,0.00020572,2]
[379685075,1755367847096,-460.0,0.00020572,2]
[379685077,1755367847105,-480.0,0.00020572,2]
[379685078,1755367847117,-665.88,0.00020572,2]
[379685079,1755367847126,-480.0,0.00020572,2]
[379685080,1755367847136,-388.52879298,0.00020572,2]
[379685081,1755367847145,-480.0,0.00020572,2]
[379685082,1755367847159,-480.0,0.00020572,2]
[379685083,1755367847168,-490.69,0.00020572,2]
[379685084,1755367847177,-480.0,0.00020572,2]
[379685085,1755367847186,-480.0,0.00020572,2]
[379685086,1755367847197,-400.0,0.00020572,2]
[379685087,1755367847207,-480.0,0.00020572,2]
[379685088,1755367847216,-460.0,0.00020572,2]
[379685089,1755367847226,-480.0,0.00020572,2]
[379685090,1755367847236,-480.0,0.00020572,2]
[379685091,1755367847245,-480.0,0.00020572,2]
[379685092,1755367847255,-480.0,0.00020572,2]
[379685093,1755367847264,-480.0,0.00020572,2]
[379685094,1755367847274,-466.33812446,0.00020572,2]
[379685095,1755367847283,-460.0,0.00020572,2]
[379685096,1755367847292,-480.0,0.00020572,2]
[379685097,1755367847301,-460.0,0.00020572,2]
[379685098,1755367847310,-353.03593812,0.00020572,2]
[379685099,1755367847319,-198.09871778,0.00020572,2]
[379685100,1755367847328,-524.45,0.00020572,2]
[379685101,1755367847337,-596.10137762,0.00020572,2]
[379685102,1755367847347,-480.0,0.00020572,2]
[379685103,1755367847356,-460.0,0.00020572,2]
[379685104,1755367847365,-1542.03,0.00020572,2]
[379685105,1755367847374,-500.0,0.00020572,2]
[379685106,1755367847384,-480.0,0.00020572,2]
[379685107,1755367847393,-480.0,0.00020572,2]
[379685109,1755367847403,-460.38725175,0.00020572,2]
[379685111,1755367847412,-460.0,0.00020572,2]
[379685113,1755367847422,-460.0,0.00020572,2]
[379685114,1755367847431,-480.0,0.00020572,2]
[379685115,1755367847440,-480.0,0.00020572,2]
[379685116,1755367847450,-1493.06,0.00020572,2]
[379685117,1755367847459,-460.0,0.00020572,2]
[379685118,1755367847469,-570.4,0.00020572,2]
[379685119,1755367847478,-1002.0,0.00020572,2]
[379685120,1755367847487,-1320.6,0.00020572,2]
[379685121,1755367847497,-480.0,0.00020572,2]
[379685122,1755367847506,-480.0,0.00020572,2]
[379685123,1755367847516,-633.05,0.00020572,2]
[379685124,1755367847525,-288.55939699,0.00020572,2]
[379685125,1755367847534,-480.0,0.00020572,2]
[379685126,1755367847544,-480.0,0.00020572,2]
[379685127,1755367847554,-460.0,0.00020572,2]
[379685128,1755367847567,-745.72,0.00020572,2]
[379685129,1755367847576,-460.0,0.00020572,2]
[379685130,1755367847587,-1764.34,0.00020572,2]
[379685131,1755367847597,-1148.13,0.00020572,2]
[379685132,1755367847606,-460.0,0.00020572,2]
[379685133,1755367847615,-480.0,0.00020572,2]
[379685134,1755367847625,-1163.79,0.00020572,2]
[379685135,1755367847634,-577.15,0.00020572,2]
[379685136,1755367847644,-480.0,0.00020572,2]
[379685137,1755367847653,-480.0,0.00020572,2]
[379685138,1755367847663,-480.0,0.00020572,2]
[379685139,1755367847672,-461.5908199,0.00020572,2]
[379685140,1755367847681,-480.0,0.00020572,2]
[379685141,1755367847691,-590.35,0.00020572,2]
[379685142,1755367847700,-460.0,0.00020572,2]
[379685143,1755367847709,-1348.51,0.00020572,2]
[379685144,1755367847719,-480.0,0.00020572,2]
[379685145,1755367847730,-480.0,0.00020572,2]
[379685146,1755367847739,-460.0,0.00020572,2]
[379685147,1755367847748,-480.0,0.00020572,2]
[379685148,1755367847758,-480.0,0.00020572,2]
[379685149,1755367847768,-661.55348345,0.00020572,2]
[379685197,1755368256923,620.0,0.000201,10]
[379685198,1755368281383,621.0,0.000201,10]
[379685199,1755368341347,312.420924,0.00013699,2]
[379685200,1755368541159,321.60109157,0.00019856,2]
[379685222,1755368742758,237.09470802,0.000201,2]
[379685252,1755368916906,150.999999,0.00027845,120]
[379685271,1755369032047,-312.420924,0.00020187,2]
[379685272,1755369032056,-232.75935767,0.00020369,2]
[379685273,1755369032067,-1547.69188353,0.00020369,2]
[379685274,1755369032078,-79.06702441,0.00020369,2]
[379685275,1755369032087,-358.45787117,0.00020468,2]
[379685276,1755369032097,-300.0,0.00020468,2]
[379685277,1755369032106,-1200.0,0.00020468,2]
[379685278,1755369032116,-480.0,0.00020468,2]
[379685279,1755369032125,-480.0,0.00020468,2]
[379685280,1755369032134,-480.0,0.00020468,2]
[379685281,1755369032143,-480.0,0.00020468,2]
[379685282,1755369032152,-480.0,0.00020468,2]
[379685283,1755369032161,-500.0,0.00020468,2]
[379685284,1755369032170,-1307.23,0.00020469,2]
[379685285,1755369032179,-802.9,0.00020469,2]
[379685287,1755369032188,-747.97,0.00020469,2]
[379685288,1755369032197,-945.85,0.00020469,2]
[379685289,1755369032206,-173.39721322,0.00020469,2]
[379685291,1755369032440,-306.60278678,0.00020469,2]
[379685292,1755369032449,-84.30781298,0.00020469,2]
[379685562,1755369039816,-480.0,0.00020468,2]
[379685565,1755369039826,-240.77822964,0.00020468,2]
[379686143,1755369045919,-249.41177036,0.00020468,2]
[379686145,1755369045929,-172.51641417,0.00020468,2]
[379686148,1755369045941,-258.67234176,0.00020468,2]
[379687245,1755369445609,304.393602,0.00013699,2]
[379687246,1755369742962,588.79415574,0.00019757,2]
[379687247,1755369743322,294.39707787,0.00019762,2]
[379687296,1755370232226,-304.393602,0.00020187,2]
[379687298,1755370232236,-211.61268212,0.0002023,2]
[379687300,1755370232245,-159.28441504,0.00020265,2]
[379687302,1755370232256,-159.28441503,0.00020267,2]
[379687303,1755370232268,-203.21670892,0.00020268,2]
[379687305,1755370232278,-17842.522448,0.00020356,2]
[379687306,1755370232287,-627.41450464,0.00020365,2]
[379687307,1755370232297,-300.0,0.00020365,2]
[379687308,1755370232307,-1200.0,0.00020365,2]
[379687309,1755370232316,-1200.0,0.00020366,2]
[379687310,1755370232326,-480.0,0.00020366,2]
[379687311,1755370232340,-480.0,0.00020366,2]
[379687312,1755370232357,-480.0,0.00020366,2]
[379687314,1755370232369,-922.39,0.00020366,2]
[379687316,1755370232379,-1311.84,0.00020366,2]
[379687317,1755370232390,-4180.0,0.00020366,2]
[379687319,1755370232401,-460.0,0.00020366,2]
[379687320,1755370232411,-480.0,0.00020366,2]
[379687322,1755370232426,-1662.52158508,0.00020367,2]
[379687323,1755370232436,-1167.84277349,0.00020367,2]
[379687324,1755370232446,-182.15951282,0.00020367,2]
[379687325,1755370232455,-480.0,0.00020367,2]
[379687326,1755370232464,-480.0,0.00020367,2]
[379687327,1755370232474,-480.0,0.00020367,2]
[379687329,1755370232483,-397.23656085,0.00020367,2]
[379687331,1755370232492,-460.0,0.00020367,2]
[379687333,1755370232501,-480.0,0.00020367,2]
[379687335,1755370232510,-500.0,0.00020367,2]
[379687337,1755370232520,-489.77,0.00020367,2]
[379687339,1755370232529,-480.0,0.00020367,2]
[379687341,1755370232538,-480.0,0.00020367,2]
[379687343,1755370232547,-480.0,0.00020367,2]
[379687345,1755370232556,-480.0,0.00020367,2]
[379687347,1755370232566,-460.0,0.00020367,2]
[379687349,1755370232575,-66.24345004,0.00020367,2]
[379687351,1755370232591,-413.75654996,0.00020367,2]
[379687353,1755370232601,-480.0,0.00020367,2]
[379687355,1755370232611,-141.91129921,0.00020367,2]
[379687356,1755370232622,-338.08870079,0.00020367,2]
[379687357,1755370232631,-1252.77,0.00020367,2]
[379687358,1755370232640,-480.0,0.00020367,2]
[379687359,1755370232649,-480.0,0.00020367,2]
[379687360,1755370232659,-480.0,0.00020367,2]
[379687361,1755370232668,-480.0,0.00020367,2]
[379687362,1755370232677,-460.0,0.00020367,2]
[379687363,1755370232687,-251.60792685,0.00020367,2]
[379687364,1755370232696,-760.26,0.00020367,2]
[379687365,1755370232705,-259.56278345,0.00020367,2]
[379687377,1755370238375,-500.0,0.00020366,2]
[379687378,1755370238384,-500.0,0.00020366,2]
[379687379,1755370238394,-443.15117951,0.00020366,2]
[379687380,1755370238403,-500.0,0.00020366,2]
[379687381,1755370238413,-587.67832864,0.00020366,2]
[379687382,1755370238423,-500.0,0.00020366,2]
[379687383,1755370238433,-500.0,0.00020366,2]
[379687384,1755370238442,-500.0,0.00020366,2]
[379687385,1755370238451,-398.84310519,0.00020366,2]
[379687386,1755370238461,-500.0,0.00020366,2]
[379687387,1755370238470,-500.0,0.00020366,2]
[379687388,1755370238479,-577.05812954,0.00020366,2]
[379687389,1755370238488,-500.0,0.00020366,2]
[379687390,1755370238497,-343.44724104,0.00020366,2]
[379687391,1755370238506,-220.43721655,0.00020367,2]
[379687392,1755370238515,-480.0,0.00020367,2]
[379687393,1755370238526,-480.0,0.00020367,2]
[379687394,1755370238535,-480.0,0.00020367,2]
[379687395,1755370238545,-380.0,0.00020367,2]
[379687396,1755370238555,-480.0,0.00020367,2]
[379687397,1755370238564,-480.0,0.00020367,2]
[379687398,1755370238573,-480.0,0.00020367,2]
[379687399,1755370238741,-1167.48,0.00020367,2]
[379687400,1755370238752,-519.31,0.00020367,2]
[379687401,1755370238761,-480.0,0.00020367,2]
[379687402,1755370238770,-2086.99,0.00020367,2]
[379687403,1755370238780,-480.0,0.00020367,2]
[379687404,1755370238790,-480.0,0.00020367,2]
[379687405,1755370238799,-480.0,0.00020367,2]
[379687406,1755370238809,-480.0,0.00020367,2]
[379687407,1755370238818,-2671.54,0.00020367,2]
[379687408,1755370238828,-480.0,0.00020367,2]
[379687409,1755370238837,-480.0,0.00020367,2]
[379687410,1755370238847,-460.0,0.00020367,2]
[379687411,1755370238857,-623.48,0.00020367,2]
[379687412,1755370238866,-224.42831403,0.00020367,2]
[379687413,1755370238875,-480.0,0.00020367,2]
[379687414,1755370238884,-3868.54,0.00020367,2]
[379687415,1755370238893,-480.0,0.00020367,2]
[379687416,1755370238903,-530.24,0.00020367,2]
[379687417,1755370238912,-638.13,0.00020367,2]
[379687418,1755370238923,-536.05,0.00020367,2]
[379687419,1755370238932,-480.0,0.00020367,2]
[379687420,1755370238941,-480.0,0.00020367,2]
[379687421,1755370238950,-462.09363894,0.00020367,2]
[379687422,1755370238960,-480.0,0.00020367,2]
[379687423,1755370238970,-388.70216837,0.00020367,2]
[379687424,1755370238979,-480.0,0.00020367,2]
[379687425,1755370238989,-506.13813166,0.00020367,2]
[379687426,1755370238998,-3057.27,0.00020367,2]
[379687427,1755370239008,-440.0,0.00020367,2]
[379687428,1755370239019,-480.0,0.00020367,2]
[379687429,1755370239029,-480.0,0.00020367,2]
[379687430,1755370239041,-1017.77,0.00020367,2]
[379687431,1755370239050,-480.0,0.00020367,2]
[379687432,1755370239060,-351.58864699,0.00020367,2]
[379687433,1755370239069,-460.0,0.00020367,2]
[379687434,1755370239078,-499.85,0.00020367,2]
[379687435,1755370239088,-480.0,0.00020367,2]
[379687436,1755370239098,-487.20517077,0.00020367,2]
[379687437,1755370239107,-480.0,0.00020367,2]
[379687438,1755370239117,-1185.62,0.00020367,2]
[379687439,1755370239126,-480.0,0.00020367,2]
[379687440,1755370239135,-546.55,0.00020367,2]
[379687441,1755370239144,-480.0,0.00020367,2]
[379687442,1755370239153,-500.0,0.00020367,2]
[379687443,1755370239163,-370000.0,0.00020368,2]
[379687444,1755370239173,-24040.59112898,0.00020368,3]
[379687445,1755370239182,-12675.74622655,0.00020368,3]
[379687446,1755370239191,-417.15472785,0.00020368,3]
[379687447,1755370239200,-462.1417622,0.00020368,3]
[379687448,1755370239210,-627.41450462,0.00020434,2]
[379687449,1755370239219,-480.0,0.00020466,2]
[379687450,1755370239229,-480.0,0.00020466,2]
[379687451,1755370239239,-480.0,0.00020466,2]
[379687452,1755370239248,-480.0,0.00020466,2]
[379687453,1755370239259,-480.0,0.00020466,2]
[379687454,1755370239271,-480.0,0.00020466,2]
[379687455,1755370239281,-480.0,0.00020466,2]
[379687456,1755370239290,-480.0,0.00020466,2]
[379687457,1755370239299,-480.0,0.00020466,2]
[379687458,1755370239309,-480.0,0.00020466,2]
[379687459,1755370239318,-480.0,0.00020466,2]
[379687460,1755370239327,-460.0,0.00020466,2]
[379687461,1755370239338,-1503.24,0.00020466,2]
[379687462,1755370239347,-480.0,0.00020466,2]
[379687463,1755370239356,-2716.49,0.00020466,2]
[379687464,1755370239365,-460.0,0.00020466,2]
[379687465,1755370239375,-1231.3,0.00020466,2]
[379687466,1755370239385,-480.0,0.00020466,2]
[379687467,1755370239394,-480.0,0.00020466,2]
[379687468,1755370239404,-480.0,0.00020466,2]
[379687469,1755370239414,-789.45,0.00020466,2]
[379687470,1755370239425,-440.0,0.00020466,2]
[379687471,1755370239435,-461.73871891,0.00020466,2]
[379687472,1755370239444,-994.48,0.00020466,2]
[379687473,1755370239454,-1496.94,0.00020466,2]
[379687474,1755370239463,-480.0,0.00020466,2]
[379687475,1755370239473,-480.0,0.00020466,2]
[379687476,1755370239483,-500.0,0.00020466,2]
[379687477,1755370239492,-480.0,0.00020466,2]
[379687478,1755370239501,-480.0,0.00020466,2]
[379687479,1755370239510,-480.0,0.00020466,2]
[379687480,1755370239519,-480.0,0.00020466,2]
[379687481,1755370239529,-480.0,0.00020466,2]
[379687482,1755370239538,-1004.59,0.00020466,2]
[379687483,1755370239547,-1469.18,0.00020466,2]
[379687484,1755370239556,-421.25850553,0.00020466,2]
[379687485,1755370239565,-480.0,0.00020466,2]
[379687486,1755370239574,-566.63,0.00020466,2]
[379687487,1755370239583,-1055.31,0.00020466,2]
[379687488,1755370239592,-1385.94,0.00020466,2]
[379687489,1755370239602,-1225.5,0.00020466,2]
[379687490,1755370239611,-480.0,0.00020466,2]
[379687491,1755370239621,-480.0,0.00020466,2]
[379687493,1755370239630,-480.0,0.00020466,2]
[379687494,1755370239639,-646.67,0.00020466,2]
[379687495,1755370239648,-480.0,0.00020466,2]
[379687496,1755370239658,-7953.08,0.00020466,2]
[379687497,1755370239667,-480.0,0.00020466,2]
[379687498,1755370239676,-480.0,0.00020466,2]
[379687499,1755370239685,-480.0,0.00020466,2]
[379687500,1755370239694,-480.0,0.00020466,2]
[379687501,1755370239703,-480.0,0.00020466,2]
[379687503,1755370239712,-1799.08,0.00020466,2]
[379687504,1755370239721,-440.0,0.00020466,2]
[379687505,1755370239731,-776.05,0.00020466,2]
[379687506,1755370239739,-480.0,0.00020466,2]
[379687507,1755370239748,-480.0,0.00020466,2]
[379687508,1755370239757,-1133.57,0.00020466,2]
[379687509,1755370239766,-553.1,0.00020466,2]
[379687510,1755370239776,-480.0,0.00020466,2]
[379687511,1755370239785,-480.0,0.00020466,2]
[379687512,1755370239794,-151.0,0.00020466,2]
[379687513,1755370239803,-460.75977556,0.00020466,2]
[379687514,1755370239812,-151.0,0.00020466,2]
[379687515,1755370239821,-500.0,0.00020466,2]
[379687516,1755370239831,-500.0,0.00020466,2]